bitfinex-derivatives/quotes_BNBF0:USTF0_20250302
["timestamp","ask_amount","ask_price","bid_price","bid_amount"]
[1740948513988,0.27702058,619.96,618.98,0.32311221]
[1740948514195,0.27702058,619.99,618.98,0.32311221]
[1740948514394,0.27702058,619.98,618.98,0.32311221]
[1740948514689,0.27702058,619.97,618.98,0.32311221]
[1740948514895,0.27702058,619.99,618.98,0.32311221]
[1740948515191,0.27702058,619.98,618.98,0.32311221]
[1740948515499,0.27702058,619.97,618.98,0.32311221]
[1740948515797,0.27702058,619.96,618.98,0.32311221]
[1740948516094,0.27704976,619.95,618.98,0.32311221]
[1740948516296,0.27704976,619.99,618.98,0.32311221]
[1740948516596,0.27704976,619.98,618.98,0.32311221]
[1740948516796,1.68611459,619.98,618.98,0.32311221]
[1740948517094,0.27704976,619.97,618.98,0.32311221]
[1740948519698,0.27704976,619.99,618.98,0.32311221]
[1740948519997,0.27704976,619.98,618.98,0.32311221]
[1740948520197,0.27704976,619.99,618.98,0.32311221]
[1740948520399,0.27704976,619.98,618.98,0.32311221]
[1740948520697,0.27704976,619.97,618.98,0.32311221]
[1740948521099,0.27704976,619.96,618.98,0.32311221]
[1740948521300,0.27704976,619.99,618.98,0.32311221]
[1740948521499,0.27704976,619.98,618.98,0.32311221]
[1740948521695,0.27704976,619.99,618.98,0.32311221]
[1740948522001,0.27704976,619.98,618.98,0.32311221]
[1740948522194,1.115,619.97,618.98,0.32311221]
[1740948522395,0.27704976,619.96,618.98,0.32311221]
[1740948522594,1.115,619.97,618.98,0.32311221]
[1740948522797,0.27692008,619.96,618.98,0.32311221]
[1740948525999,1.115,619.97,618.98,0.32311221]
[1740948526200,1.143,619.95,618.98,0.32311221]
[1740948526394,0.27690517,619.94,618.98,0.32311221]
[1740948527703,0.27684185,619.93,618.98,0.32311221]
[1740948528002,0.27684185,619.92,618.98,0.32311221]
[1740948528302,0.27684185,619.91,618.98,0.32311221]
[1740948528502,0.27684185,619.9,618.98,0.32311221]
[1740948528802,0.27684185,619.89,618.98,0.32311221]
[1740948529003,0.27684185,619.88,618.98,0.32311221]
[1740948529202,0.27684185,619.94,618.98,0.32311221]
[1740948529404,0.27684185,619.93,618.98,0.32311221]
[1740948529601,0.27684185,619.94,618.98,0.32311221]
[1740948529797,0.27684185,619.93,618.98,0.32311221]
[1740948530000,0.27684185,619.94,618.98,0.32311221]
[1740948534305,1.40684185,619.94,618.98,0.32311221]
[1740948534603,0.27684185,619.93,618.98,0.32311221]
[1740948535604,1.122,619.92,618.98,0.32311221]
[1740948535803,0.27684185,619.91,618.98,0.32311221]
[1740948536004,1.65084185,619.91,618.98,0.32311221]
[1740948536204,0.27684185,619.9,618.98,0.32311221]
[1740948536904,0.816,619.89,618.98,0.32311221]
[1740948537101,0.27684185,619.88,618.98,0.32311221]
[1740948542809,1.045,619.87,618.98,0.32311221]
[1740948543004,0.27684185,619.86,618.98,0.32311221]
[1740948544805,0.27684185,619.86,618.49,1.68646186]
[1740948545005,0.27684185,619.86,618.52,1.19666743]
[1740948545509,0.619,619.85,618.53,0.32334729]
[1740948545806,0.27649612,619.84,618.53,0.32334729]
[1740948546010,0.27653977,619.84,618.53,0.32334729]
[1740948547310,0.27657229,619.83,618.53,0.32334729]
[1740948547506,1.302,619.83,618.53,0.32334729]
[1740948547810,0.27657229,619.82,618.53,0.32334729]
[1740948549009,0.27654466,619.81,618.53,0.32334729]
[1740948549206,0.27654466,619.8,618.53,0.32334729]
[1740948549409,0.27654466,619.79,618.53,0.32334729]
[1740948552816,1.68670027,619.78,618.53,0.32334729]
[1740948553117,0.27654466,619.77,618.53,0.32334729]
[1740948554315,0.905,619.76,618.53,0.32334729]
[1740948554516,0.27654466,619.75,618.53,0.32334729]
[1740948555417,0.905,619.76,618.53,0.32334729]
[1740948555609,0.2762585,619.75,618.53,0.32334729]
[1740948563621,1.68672752,619.74,618.53,0.32334729]
[1740948563821,0.2762585,619.73,618.53,0.32334729]
[1740948564223,0.27636468,619.72,618.53,0.32334729]
[1740948564523,1.92636468,619.71,618.53,0.32334729]
[1740948564723,0.27636468,619.7,618.53,0.32334729]
[1740948565024,1.23736468,619.7,618.53,0.32334729]
[1740948565219,0.27636468,619.69,618.53,0.32334729]
[1740948565826,0.89536468,619.69,618.53,0.32334729]
[1740948566127,0.27636468,619.68,618.53,0.32334729]
[1740948570127,0.619,619.69,618.53,0.32334729]
[1740948570322,0.27643978,619.68,618.53,0.32334729]
[1740948570527,1.215,619.67,618.53,0.32334729]
[1740948570828,0.27643978,619.66,618.53,0.32334729]
[1740948571529,1.215,619.67,618.53,0.32334729]
[1740948572126,0.27631917,619.66,618.53,0.32334729]
[1740948573127,1.012,619.65,618.53,0.32334729]
[1740948573630,1.64227425,619.64,618.53,0.32334729]
[1740948573831,0.27627425,619.63,618.53,0.32334729]
[1740948575629,1.161,619.62,618.53,0.32334729]
[1740948575825,0.27627425,619.61,618.53,0.32334729]
[1740948577031,1.68696601,619.6,618.53,0.32334729]
[1740948577231,0.27627425,619.59,618.53,0.32334729]
[1740948579825,0.27627425,619.58,618.53,0.32334729]
[1740948580026,0.27627425,619.57,618.53,0.32334729]
[1740948585736,0.27627425,619.56,618.53,0.32334729]
[1740948585938,0.27627425,619.55,618.53,0.32334729]
[1740948586133,0.27627425,619.54,618.53,0.32334729]
[1740948586334,0.27627425,619.53,618.53,0.32334729]
[1740948586535,0.27627425,619.61,618.53,0.32334729]
[1740948587937,0.855,619.6,618.53,0.32334729]
[1740948588340,0.2761204,619.59,618.53,0.32334729]
[1740948589935,0.89511995,619.58,618.53,0.32334729]
[1740948590140,0.27611995,619.57,618.53,0.32334729]
[1740948591739,1.68700008,619.56,618.53,0.32334729]
[1740948591938,0.27611995,619.55,618.53,0.32334729]
[1740948592534,1.68700008,619.56,618.53,0.32334729]
[1740948592739,0.27611581,619.55,618.53,0.32334729]
[1740948593236,0.27612051,619.54,618.53,0.32334729]
[1740948593439,1.68700008,619.56,618.53,0.32334729]
[1740948593737,0.2761349,619.55,618.53,0.32334729]
[1740948595039,0.2761349,619.54,618.53,0.32334729]
[1740948595241,0.2761349,619.57,618.53,0.32334729]
[1740948595441,1.152,619.53,618.53,0.32334729]
[1740948595636,0.2761349,619.52,618.53,0.32334729]
[1740948595835,1.4571349,619.52,618.53,0.32334729]
[1740948596040,0.2761349,619.51,618.53,0.32334729]
[1740948596537,0.27610398,619.5,618.53,0.32334729]
[1740948596737,0.27610398,619.51,618.53,0.32334729]
[1740948596942,0.27610398,619.5,618.53,0.32334729]
[1740948597137,0.27610398,619.49,618.53,0.32334729]
[1740948597336,0.27610398,619.48,618.53,0.32334729]
[1740948597540,0.27610398,619.47,618.53,0.32334729]
[1740948597737,0.27610398,619.46,618.53,0.32334729]
[1740948597940,0.27610398,619.45,618.53,0.32334729]
[1740948598141,1.181,619.52,618.53,0.32334729]
[1740948598438,0.27604814,619.51,618.53,0.32334729]
[1740948599950,1.197,619.5,618.53,0.32334729]
[1740948600149,0.27604814,619.49,618.53,0.32334729]
[1740948600349,1.197,619.5,618.53,0.32334729]
[1740948601655,0.27607653,619.49,618.53,0.32334729]
[1740948602645,0.27606067,619.48,618.53,0.32334729]
[1740948602849,0.27606067,619.47,618.53,0.32334729]
[1740948603051,0.27606067,619.49,618.53,0.32334729]
[1740948603251,1.197,619.5,618.53,0.32334729]
[1740948603554,1.227,619.48,618.53,0.32334729]
[1740948603755,0.27606053,619.47,618.53,0.32334729]
[1740948604752,1.227,619.48,618.53,0.32334729]
[1740948609850,0.27623798,619.47,618.53,0.32334729]
[1740948610054,1.227,619.48,618.53,0.32334729]
[1740948614958,0.977,619.47,618.53,0.32334729]
[1740948615159,1.596,619.47,618.53,0.32334729]
[1740948616962,0.865,619.46,618.53,0.32334729]
[1740948621264,0.822,619.45,618.53,0.32334729]
[1740948623067,1.877,619.45,618.53,0.32334729]
[1740948625865,1.877,619.45,618.51,1.68664577]
[1740948630068,3.098,619.45,618.51,1.68664577]
[1740948630569,3.098,619.45,618.07,0.6203385]
[1740948630764,3.098,619.45,618.08,0.29688993]
[1740948630964,3.098,619.45,618.09,0.29688993]
[1740948631164,3.098,619.45,618.26,1.19666743]
[1740948631369,3.098,619.45,618.27,0.29689027]
[1740948633970,3.098,619.45,618.32,1.19666743]
[1740948634272,3.098,619.45,618.33,0.29689027]
[1740948634969,0.27620662,619.44,618.37,1.19666743]
[1740948635165,3.098,619.45,618.38,0.29689027]
[1740948636766,4.085,619.45,618.38,0.29689027]
[1740948637570,4.085,619.45,618.37,1.19666743]
[1740948639471,4.085,619.45,618.42,1.19666743]
[1740948640373,4.704,619.45,618.42,1.19666743]
[1740948642375,4.704,619.45,618.45,1.19666743]
[1740948644374,5.827,619.45,618.46,1.19666743]
[1740948645377,6.736,619.45,618.46,1.19666743]
[1740948647076,6.736,619.45,618.41,1.68661852]
[1740948647077,6.736,619.45,618.49,1.19666743]
[1740948650181,6.736,619.45,618.54,1.19666743]
[1740948652782,6.736,619.45,618.57,1.19666743]
[1740948653085,6.736,619.45,618.58,0.32332115]
[1740948656087,6.736,619.45,618.61,1.19666743]
[1740948656282,6.736,619.45,618.62,0.32330024]
[1740948661389,6.736,619.45,618.65,1.19666743]
[1740948661988,6.736,619.45,618.66,0.32327934]
[1740948673898,7.801,619.45,618.66,0.32327934]
[1740948674893,7.801,619.45,618.66,0.31832669]
[1740948679002,7.801,619.45,618.67,0.29678762]
[1740948679302,7.801,619.45,618.68,0.32326889]
[1740948699129,7.801,619.45,618.69,0.29678132]
[1740948699624,7.801,619.45,618.7,0.32325844]
[1740948699830,7.801,619.45,618.71,0.29678132]
[1740948700030,7.801,619.45,618.72,0.32324799]
[1740948709530,7.801,619.45,618.73,0.29672213]
[1740948709731,7.801,619.45,618.74,0.32323754]
[1740948710031,7.801,619.45,618.75,0.29672213]
[1740948710228,7.801,619.45,618.76,0.32322709]
[1740948711736,7.801,619.45,618.85,1.19666743]
[1740948711930,7.801,619.45,618.86,0.32317486]
[1740948735145,7.801,619.45,618.89,1.19666743]
[1740948735343,6.746,619.45,618.9,0.32315398]
[1740948735548,1.4380471,620.51,618.9,0.32315398]
[1740948735844,0.59892901,620.5,618.9,0.32315398]
[1740948736050,0.59893421,620.49,618.9,0.32315398]
[1740948736251,0.59894078,620.48,618.9,0.32315398]
[1740948736452,0.59894598,620.47,618.9,0.32315398]
[1740948736652,0.59895117,620.46,618.9,0.32315398]
[1740948736950,0.59895637,620.45,618.9,0.32315398]
[1740948737151,0.59896156,620.44,618.9,0.32315398]
[1740948737352,0.59896676,620.43,618.9,0.32315398]
[1740948737551,0.59897196,620.42,618.9,0.32315398]
[1740948737752,0.59897715,620.41,618.9,0.32315398]
[1740948738050,0.59898235,620.4,618.9,0.32315398]
[1740948738251,0.59898754,620.39,618.9,0.32315398]
[1740948738450,0.59899274,620.38,618.9,0.32315398]
[1740948738653,0.59899794,620.37,618.9,0.32315398]
[1740948738848,0.59900313,620.36,618.9,0.32315398]
[1740948739048,0.59900833,620.35,618.9,0.32315398]
[1740948739252,0.27660969,620.34,618.9,0.32315398]
[1740948739455,0.32240904,620.33,618.9,0.32315398]
[1740948739652,0.27662408,620.32,618.9,0.32315398]
[1740948739858,0.32241943,620.31,618.9,0.32315398]
[1740948740158,0.27662408,620.3,618.9,0.32315398]
[1740948740454,0.32242983,620.29,618.9,0.32315398]
[1740948740660,0.27662408,620.28,618.9,0.32315398]
[1740948740855,0.32244022,620.27,618.9,0.32315398]
[1740948741052,0.27662408,620.26,618.9,0.32315398]
[1740948741257,0.32245062,620.25,618.9,0.32315398]
[1740948741455,0.27662408,620.24,618.9,0.32315398]
[1740948741857,1.68558374,620.23,618.9,0.32315398]
[1740948742057,0.27662408,620.22,618.9,0.32315398]
[1740948742463,0.32247142,620.21,618.9,0.32315398]
[1740948742656,0.27662408,620.2,618.9,0.32315398]
[1740948745062,1.68561095,620.19,618.9,0.32315398]
[1740948745364,0.27662408,620.18,618.9,0.32315398]
[1740948747765,0.27662408,620.2,618.9,0.32315398]
[1740948747966,1.68562456,620.17,618.9,0.32315398]
[1740948748166,0.27662408,620.16,618.9,0.32315398]
[1740948749367,1.68562456,620.17,618.9,0.32315398]
[1740948749560,0.2766315,620.16,618.9,0.32315398]
[1740948749974,0.32250262,620.15,618.9,0.32315398]
[1740948750166,0.2766315,620.14,618.9,0.32315398]
[1740948750468,0.32251302,620.13,618.9,0.32315398]
[1740948750766,0.2766315,620.12,618.9,0.32315398]
[1740948750966,0.32252342,620.11,618.9,0.32315398]
[1740948751161,0.2766315,620.1,618.9,0.32315398]
[1740948751361,0.32253382,620.09,618.9,0.32315398]
[1740948751663,1.2906315,620.08,618.9,0.32315398]
[1740948751865,0.59917572,620.07,618.9,0.32315398]
[1740948752167,0.59918093,620.06,618.9,0.32315398]
[1740948752364,0.2766315,620.05,618.9,0.32315398]
[1740948752561,0.32255983,620.04,618.9,0.32315398]
[1740948752762,0.2766315,620.03,618.9,0.32315398]
[1740948753061,0.59919653,620.03,618.9,0.32315398]
[1740948753269,0.2766315,620.02,618.9,0.32315398]
[1740948753866,0.618,620.01,618.9,0.32315398]
[1740948754067,0.2766315,620.0,618.9,0.32315398]
[1740948756972,1.68624395,619.99,618.9,0.32315398]
[1740948757171,0.2766315,619.98,618.9,0.32315398]
[1740948758974,0.885,619.97,618.9,0.32315398]
[1740948759175,0.2766315,619.96,618.9,0.32315398]
[1740948759971,2.8542848,619.95,618.9,0.32315398]
[1740948760175,0.2766315,619.94,618.9,0.32315398]
[1740948762777,0.27672131,619.93,618.9,0.32315398]
[1740948762978,0.27672131,619.94,618.9,0.32315398]
[1740948763179,0.27672131,619.93,618.9,0.32315398]
[1740948763378,0.27672131,619.94,618.9,0.32315398]
[1740948763583,0.27672131,619.93,618.9,0.32315398]
[1740948763774,0.27672131,619.94,618.9,0.32315398]
[1740948763976,0.27672131,619.93,618.9,0.32315398]
[1740948764177,0.27672131,619.94,618.9,0.32315398]
[1740948764377,0.27672131,619.92,618.9,0.32315398]
[1740948764581,0.27672131,619.91,618.9,0.32315398]
[1740948764778,0.27672131,619.94,618.9,0.32315398]
[1740948764983,0.27672131,619.93,618.9,0.32315398]
[1740948765183,0.27672131,619.94,618.9,0.32315398]
[1740948765380,0.27672131,619.93,618.9,0.32315398]
[1740948765585,0.27672131,619.92,618.9,0.32315398]
[1740948765785,0.27672131,619.94,618.9,0.32315398]
[1740948765982,0.27672131,619.91,618.9,0.32315398]
[1740948766187,0.27672131,619.9,618.9,0.32315398]
[1740948766387,0.27672131,619.89,618.9,0.32315398]
[1740948766588,0.27672131,619.94,618.9,0.32315398]
[1740948766784,0.986,619.88,618.9,0.32315398]
[1740948766985,0.27672131,619.87,618.9,0.32315398]
[1740948767887,1.021,619.86,618.9,0.32315398]
[1740948768082,0.27672131,619.85,618.9,0.32315398]
[1740948771083,0.618,619.84,618.9,0.32315398]
[1740948783994,0.27677665,619.83,618.9,0.32315398]
[1740948785498,0.27677665,619.82,618.9,0.32315398]
[1740948785694,0.986,619.88,618.9,0.32315398]
[1740948786095,0.986,619.88,618.91,0.29663879]
[1740948786292,0.986,619.88,618.93,0.32313831]
[1740948786494,0.986,619.88,618.94,0.29663879]
[1740948786694,0.986,619.88,618.96,0.32312265]
[1740948786899,0.986,619.88,618.97,0.29663879]
[1740948787199,0.986,619.88,618.99,0.32310699]
[1740948791805,2.916,620.04,618.99,0.32310699]
[1740948791999,0.27677706,620.03,618.99,0.32310699]
[1740948792304,2.916,620.04,618.99,0.32310699]
[1740948793308,2.424,620.03,618.99,0.32310699]
[1740948794008,2.424,620.03,619.0,0.29655465]
[1740948794202,2.424,620.03,619.02,0.32309133]
[1740948795008,1.224,620.02,619.03,0.296533]
[1740948795309,1.224,620.02,619.05,0.32307568]
[1740948796012,1.224,620.02,619.06,0.29653581]
[1740948796210,1.224,620.02,619.08,0.32306002]
[1740948797609,1.224,620.02,619.09,0.29654174]
[1740948797909,1.224,620.02,619.11,0.32304437]
[1740948798603,1.224,620.02,619.12,0.29654098]
[1740948798804,1.224,620.02,619.14,0.32302871]
[1740948799906,1.224,620.02,619.15,0.29651117]
[1740948800110,1.224,620.02,619.17,0.32301306]
[1740948800308,1.224,620.02,619.18,0.29651117]
[1740948800506,1.224,620.02,619.19,0.29646986]
[1740948800711,1.224,620.02,619.18,0.29646986]
[1740948800911,1.224,620.02,619.19,0.29646986]
[1740948801208,1.224,620.02,619.2,0.29646986]
[1740948801411,1.224,620.02,619.18,0.29646986]
[1740948803608,1.224,620.02,619.17,0.32301306]
[1740948803807,1.224,620.02,619.18,0.29645908]
[1740948804407,1.224,620.02,619.17,0.32301306]
[1740948807310,1.225,620.01,619.17,0.32301306]
[1740948808413,1.297,620.0,619.17,0.32301306]
[1740948812325,1.016,619.99,619.17,0.32301306]
[1740948814723,0.615,619.98,619.17,0.32301306]
[1740948817324,0.615,619.98,619.18,0.29646744]
[1740948817523,0.615,619.98,619.19,0.32300263]
[1740948817724,0.615,619.98,619.2,0.29646744]
[1740948817929,0.615,619.98,619.21,0.32299219]
[1740948818130,0.615,619.98,619.22,0.29646744]
[1740948818325,0.615,619.98,619.23,0.32298176]
[1740948819328,0.998,619.97,619.23,0.32298176]
[1740948819929,0.998,619.97,619.24,0.29647409]
[1740948820130,0.998,619.97,619.25,0.32297133]
[1740948820331,0.998,619.97,619.26,0.296469]
[1740948820529,0.998,619.97,619.27,0.3229609]
[1740948821729,0.998,619.97,619.28,0.29645204]
[1740948822229,0.949,619.96,619.28,0.29645204]
[1740948822429,0.949,619.96,619.29,0.32295047]
[1740948822629,0.949,619.96,619.3,0.29645204]
[1740948822829,0.949,619.96,619.31,0.32294004]
[1740948823029,0.949,619.96,619.32,0.29645204]
[1740948823236,0.949,619.96,619.33,0.32292961]
[1740948823431,0.949,619.96,619.34,0.29645204]
[1740948823633,1.052,619.95,619.35,0.32291918]
[1740948825535,2.507,619.95,619.35,0.32291918]
[1740948827637,3.702,619.95,619.35,0.32291918]
[1740948828939,4.317,619.95,619.35,0.32291918]
[1740948830841,5.448,619.95,619.35,0.32291918]
[1740948833542,6.44,619.95,619.35,0.32291918]
[1740948837648,6.44,619.95,619.35,1.51958661]
[1740948838244,6.44,619.95,619.36,0.29642733]
[1740948838445,6.44,619.95,619.37,0.32290876]
[1740948838647,6.44,619.95,619.38,0.29642733]
[1740948838848,6.44,619.95,619.39,0.32289833]
[1740948839646,6.44,619.95,619.4,0.2964249]
[1740948839847,6.44,619.95,619.41,0.3228879]
[1740948844750,4.985,619.95,619.41,0.3228879]
[1740948846651,3.933,619.95,619.41,0.3228879]
[1740948847855,3.933,619.95,619.42,0.29639267]
[1740948848052,3.933,619.95,619.43,0.32287748]
[1740948851253,3.933,619.95,619.43,1.51954491]
[1740948851554,2.941,619.95,619.43,1.51954491]
[1740948851749,2.941,619.95,619.44,0.29638432]
[1740948852061,2.941,619.95,619.45,0.32286705]
[1740948852653,1.746,619.95,619.45,0.32286705]
[1740948853650,1.746,619.95,619.5,1.19666743]
[1740948853852,1.746,619.95,619.51,0.32283578]
[1740948856958,1.131,619.95,619.51,0.32283578]
[1740948857859,2.173,620.0,619.51,0.32283578]
[1740948860763,0.934,620.0,619.51,0.32283578]
[1740948862859,0.934,620.0,619.52,0.29635402]
[1740948863160,0.934,620.0,619.53,0.32282536]
[1740948863361,0.934,620.0,619.54,0.29635402]
[1740948863562,0.934,620.0,619.55,0.32281494]
[1740948863762,0.934,620.0,619.56,0.29635402]
[1740948863963,0.934,620.0,619.57,0.32280452]
[1740948864865,0.934,620.0,619.58,0.29619272]
[1740948865059,0.934,620.0,619.59,0.3227941]
[1740948865467,0.934,620.0,619.6,0.29612462]
[1740948865766,0.55814131,620.0,619.62,1.19666743]
[1740948865964,0.55814131,620.0,619.63,0.29612462]
[1740948866766,0.55814131,620.0,619.64,0.32276805]
[1740948867066,0.55814131,620.0,619.65,0.29612462]
[1740948867262,0.55814131,620.0,619.66,0.32275764]
[1740948867466,0.55814131,620.0,619.67,0.29612462]
[1740948868168,2.42151196,620.1,619.67,0.29612462]
[1740948868568,2.42151196,620.1,619.66,0.32275764]
[1740948868569,2.42151196,620.1,619.94,1.19666743]
[1740948868764,2.42151196,620.1,619.95,0.61850504]
[1740948868962,2.42151196,620.1,619.96,0.29589838]
[1740948869162,2.42151196,620.1,619.97,0.29589838]
[1740948869469,2.42151196,620.1,619.98,0.29589838]
[1740948869665,2.42151196,620.1,619.96,0.29589838]
[1740948869866,2.42151196,620.1,619.97,0.29589838]
[1740948870168,2.42151196,620.1,619.98,0.29589838]
[1740948870469,2.42151196,620.1,619.99,0.61848422]
[1740948870768,2.42151196,620.1,620.0,0.29589838]
[1740948870963,2.42151196,620.1,620.01,0.32257544]
[1740948871170,2.42151196,620.1,620.02,0.29589838]
[1740948871367,2.42151196,620.1,620.03,0.32256503]
[1740948871567,2.42151196,620.1,620.04,0.29589838]
[1740948871769,2.42151196,620.1,620.05,0.32255463]
[1740948871963,2.42151196,620.1,620.06,0.29604724]
[1740948872171,2.42151196,620.1,620.07,0.32254422]
[1740948883082,1.597,620.1,620.07,0.32254422]
[1740948884183,0.982,620.1,620.07,0.32254422]
[1740948885581,0.982,620.1,619.1,1.19666743]
[1740948885783,0.982,620.1,619.12,0.32303915]
[1740948885983,1.307,620.16,619.13,0.29636206]
[1740948886287,1.267,620.09,619.15,0.32302349]
[1740948886489,1.267,620.09,619.16,0.29636206]
[1740948887292,0.615,620.08,619.16,0.29636206]
[1740948888989,0.615,620.08,619.15,0.32302349]
[1740948889188,3.098,620.08,619.15,0.32302349]
[1740948890590,3.329,620.08,619.15,0.32302349]
[1740948891292,3.329,620.08,619.16,0.29639752]
[1740948891493,3.329,620.08,619.15,0.32302349]
[1740948891693,3.329,620.08,619.16,0.2964003]
[1740948894490,3.329,620.08,619.18,0.32300784]
[1740948894688,3.329,620.08,619.19,0.29638863]
[1740948894892,4.927,620.08,619.21,0.32299219]
[1740948895096,4.927,620.08,619.22,0.29638863]
[1740948895993,4.927,620.08,619.24,0.32297655]
[1740948896193,4.927,620.08,619.25,0.29638863]
[1740948896393,4.927,620.08,619.27,0.3229609]
[1740948897090,4.927,620.08,619.28,0.29638818]
[1740948897595,4.927,620.08,619.29,0.32295047]
[1740948898394,6.129,620.08,619.29,0.32295047]
[1740948899695,6.129,620.08,619.3,0.29639048]
[1740948899895,6.129,620.08,619.31,0.32294004]
[1740948900396,6.129,620.08,619.32,0.29639022]
[1740948900597,6.129,620.08,619.33,0.32292961]
[1740948903992,6.129,620.08,619.34,0.29635056]
[1740948904190,6.129,620.08,619.34,1.9808804]
[1740948904400,6.129,620.08,619.35,0.61926974]
[1740948904598,6.129,620.08,619.35,0.32291918]
[1740948905398,6.129,620.08,619.36,0.2963088]
[1740948905594,6.129,620.08,619.37,0.32290876]
[1740948905995,6.129,620.08,619.38,0.29629442]
[1740948906298,6.129,620.08,619.39,0.32289833]
[1740948906497,6.129,620.08,619.4,0.29629442]
[1740948906697,6.129,620.08,619.41,0.3228879]
[1740948906896,6.129,620.08,619.42,0.29626059]
[1740948907096,6.129,620.08,619.43,0.32287748]
[1740948907296,6.129,620.08,619.44,0.29626059]
[1740948907497,6.129,620.08,619.45,0.32286705]
[1740948907693,6.129,620.08,619.46,0.29626059]
[1740948907896,6.129,620.08,619.45,0.32286705]
[1740948908395,6.129,620.08,619.46,0.29622463]
[1740948908692,6.129,620.08,619.47,0.32285663]
[1740948908998,6.129,620.08,619.48,0.29622492]
[1740948909199,6.129,620.08,619.49,0.29622492]
[1740948909401,6.129,620.08,619.5,0.61906592]
[1740948909699,4.326,620.08,619.51,0.6190607]
[1740948909894,4.326,620.08,619.52,0.61905549]
[1740948910199,4.326,620.08,619.53,0.61903012]
[1740948910495,4.326,620.08,619.54,0.29620476]
[1740948910899,4.326,620.08,619.53,0.32282536]
[1740948911096,4.326,620.08,619.79,1.19666743]
[1740948911300,3.031,620.08,619.79,1.19666743]
[1740948911701,2.8,620.08,619.79,1.19666743]
[1740948912697,2.8,620.08,619.8,0.32268473]
[1740948912902,1.202,620.08,619.8,0.32268473]
[1740948916406,1.267,620.09,619.8,0.32268473]
[1740948918000,1.267,620.09,619.81,0.29623632]
[1740948918206,1.267,620.09,619.82,0.29623301]
[1740948918404,1.267,620.09,619.81,0.29623301]
[1740948918599,1.267,620.09,619.82,0.29623301]
[1740948918804,1.267,620.09,619.83,0.29623301]
[1740948919000,1.267,620.09,619.84,0.29623301]
[1740948919199,1.267,620.09,619.81,0.29623301]
[1740948919403,1.267,620.09,619.82,0.29623301]
[1740948919605,1.267,620.09,619.81,0.29623301]
[1740948919905,1.267,620.09,619.8,0.32268473]
[1740948920104,1.267,620.09,619.82,0.32267432]
[1740948935318,1.238,620.39,619.82,0.32267432]
[1740948939817,1.008,620.39,619.82,0.32267432]
[1740948940216,5.577,620.41,619.82,0.32267432]
[1740948941122,6.743,620.41,619.82,0.32267432]
[1740948942620,6.743,620.41,619.85,1.19666743]
[1740948943223,6.743,620.41,619.86,0.3226535]
[1740948953433,5.463,620.41,619.86,0.3226535]
[1740948956138,4.352,620.41,619.86,0.3226535]
[1740948958732,3.068,620.41,619.86,0.3226535]
[1740948962139,2.454,620.41,619.86,0.3226535]
[1740948965747,1.166,620.41,619.86,0.3226535]
[1740948970252,1.166,620.41,619.87,0.29611761]
[1740948970642,1.166,620.41,619.86,0.3226535]
[1740948982559,1.166,620.41,619.41,1.19666743]
[1740948982952,1.166,620.41,619.42,0.32288269]
[1740948985954,1.17,620.4,619.42,0.32288269]
[1740948991265,0.27702962,620.39,619.42,0.32288269]
[1740948991664,1.319,620.38,619.42,0.32288269]
[1740948991959,0.27702962,620.37,618.95,1.19666743]
[1740948992159,0.32239344,620.36,618.95,1.19666743]
[1740948992361,0.27702962,620.35,618.83,1.19666743]
[1740948992559,0.32240384,620.34,618.84,0.32318531]
[1740948992762,0.27702962,620.33,618.84,0.32318531]
[1740948993067,0.32241423,620.32,618.84,0.32318531]
[1740948993269,0.27678422,620.31,618.84,0.32318531]
[1740948993664,1.40742463,620.3,618.84,0.32318531]
[1740948993867,0.59921405,620.29,618.84,0.32318531]
[1740948994064,0.27678422,620.28,618.84,0.32318531]
[1740948994271,0.32244022,620.27,618.84,0.32318531]
[1740948994465,0.27678422,620.26,618.84,0.32318531]
[1740948994670,0.32245582,620.24,618.84,0.32318531]
[1740948994874,0.27678422,620.23,618.84,0.32318531]
[1740948995075,0.32247142,620.21,618.84,0.32318531]
[1740948995273,0.27678422,620.2,618.84,0.32318531]
[1740948995573,0.89178422,620.2,618.84,0.32318531]
[1740948995773,0.59926604,620.19,618.84,0.32318531]
[1740948995969,0.27678422,620.18,618.84,0.32318531]
[1740948996174,0.27672875,620.17,618.84,0.32318531]
[1740948996370,0.32249742,620.16,618.84,0.32318531]